bitfinex-derivatives/quotes_SOLF0:USTF0_20260218
["timestamp","ask_amount","ask_price","bid_price","bid_amount"]
[1771422104882,10.32482018,82.804,82.757,0.64917329]
[1771422105084,10.32482018,82.803,82.757,0.64917329]
[1771422105284,75.9,82.805,82.757,0.64917329]
[1771422105686,10.874,82.803,82.757,0.64917329]
[1771422106185,8.66010719,82.807,82.763,0.93123618]
[1771422106380,75.9,82.81,82.763,0.93123618]
[1771422107289,8.67000773,82.813,82.763,0.93123618]
[1771422107495,75.9,82.809,82.763,0.93123618]
[1771422107788,75.9,82.809,82.766,1.11739672]
[1771422107985,8.65873006,82.817,82.766,1.11739672]
[1771422108289,75.9,82.819,82.766,1.11739672]
[1771422108679,75.9,82.819,82.779,10.877]
[1771422108879,75.9,82.819,82.78,1.19898942]
[1771422109490,75.9,82.819,82.782,10.8767]
[1771422110490,8.65873006,82.827,82.782,10.8767]
[1771422110786,8.63420753,82.825,82.782,10.8767]
[1771422111387,84.53309857,82.824,82.782,10.8767]
[1771422112289,8.63309857,82.824,82.782,12.57976124]
[1771422112491,75.9,82.823,82.782,12.57976124]
[1771422112692,75.9,82.823,82.787,10.876]
[1771422113590,36.29,82.861,82.746,12.05]
[1771422113796,8.52067681,82.838,82.788,1.85705559]
[1771422114396,8.51880552,82.836,82.796,10.8748]
[1771422116596,8.51880552,82.836,82.803,10.874]
[1771422116786,75.9,82.835,82.803,10.874]
[1771422116988,75.9,82.834,82.803,10.874]
[1771422117699,75.9,82.834,82.81,10.8731]
[1771422117998,75.9,82.835,82.788,2.46009155]
[1771422119292,75.9,82.835,82.816,10.8722]
[1771422119695,8.51880552,82.836,82.816,10.8722]
[1771422119896,75.9,82.837,82.816,10.8722]
[1771422120102,9.21864915,82.853,82.816,10.8722]
[1771422120306,9.21864915,82.851,82.816,10.8722]
[1771422120594,9.21864915,82.849,82.816,10.8722]
[1771422120800,9.21864915,82.849,82.807,10.8734]
[1771422121287,9.21864915,82.849,82.807,2.78027426]
[1771422121492,75.9,82.855,82.807,2.78027426]
[1771422121893,9.21864915,82.863,82.807,2.78027426]
[1771422122097,75.9,82.862,82.807,2.78027426]
[1771422122299,85.11864915,82.861,82.807,2.78027426]
[1771422122791,9.21864915,82.86,82.807,2.78027426]
[1771422123395,9.21864915,82.858,82.795,12.05]
[1771422123596,9.21864915,82.856,82.799,15.04963395]
[1771422123799,9.21864915,82.856,82.801,14.92702443]
[1771422124094,9.21864915,82.856,82.803,12.05]
[1771422124296,9.21864915,82.856,82.807,10.8734]
[1771422124489,9.21864915,82.854,82.79,2.9422915]
[1771422124689,9.21864915,82.852,82.79,2.9422915]
[1771422125399,9.21864915,82.85,82.792,3.01016863]
[1771422125598,9.21864915,82.85,82.795,12.05]
[1771422125799,9.21864915,82.85,82.805,10.8737]
[1771422127704,9.21864915,82.85,82.811,10.8729]
[1771422130507,9.21864915,82.85,82.817,10.8721]
[1771422131003,9.21864915,82.85,82.794,3.01016863]
[1771422131403,9.21864915,82.848,82.794,3.01016863]
[1771422132105,9.21864915,82.846,82.794,3.01016863]
[1771422132309,9.21864915,82.844,82.794,3.01016863]
[1771422133306,9.21864915,82.844,82.802,10.874]
[1771422133500,75.9,82.843,82.794,3.01016863]
[1771422133701,9.21864915,82.844,82.794,3.01016863]
[1771422133899,75.9,82.845,82.813,10.8727]
[1771422134206,9.21864915,82.845,82.773,3.5953688]
[1771422135006,9.21864915,82.845,82.803,10.874]
[1771422135197,75.9,82.844,82.803,10.874]
[1771422135397,9.21864915,82.845,82.804,3.73395341]
[1771422137605,9.21864915,82.845,82.781,12.05]
[1771422137905,9.21864915,82.845,82.8,10.8744]
[1771422138410,10.05045538,82.843,82.8,10.8744]
[1771422139904,10.05045538,82.843,82.805,10.8737]
[1771422141709,10.05045538,82.843,82.81,10.873]
[1771422142806,10.05045538,82.843,82.754,12.05]
[1771422143004,10.05045538,82.841,82.758,3.7636726]
[1771422143198,10.17885048,82.84,82.758,3.7636726]
[1771422143511,10.05045538,82.838,82.758,3.7636726]
[1771422143709,10.05045538,82.834,82.779,10.8771]
[1771422143910,10.8699,82.835,82.779,10.8771]
[1771422143911,10.05045538,82.832,82.779,10.8771]
[1771422144208,10.05045538,82.83,82.779,10.8771]
[1771422144410,10.05045538,82.828,82.779,10.8771]
[1771422144610,10.05045538,82.826,82.779,10.8771]
[1771422144811,10.05045538,82.824,82.779,10.8771]
[1771422145012,10.05045538,82.822,82.779,10.8771]
[1771422145212,10.17885048,82.821,82.779,10.8771]
[1771422145412,10.8699,82.835,82.779,10.8771]
[1771422145413,10.05045538,82.819,82.779,10.8771]
[1771422146112,10.21056463,82.818,82.779,10.8771]
[1771422146312,10.05045538,82.816,82.779,10.8771]
[1771422146609,10.05045538,82.816,82.785,10.8762]
[1771422147206,10.21855074,82.815,82.785,10.8762]
[1771422147410,10.05045538,82.813,82.785,10.8762]
[1771422147604,2.10083162,82.8,82.785,10.8762]
[1771422148413,2.10083162,82.79,82.758,3.7636726]
[1771422149909,2.10083162,82.8,82.759,3.96362521]
[1771422150313,2.10083162,82.8,82.761,4.28559169]
[1771422150514,2.10083162,82.83,82.781,4.28559169]
[1771422150706,2.10083162,82.84,82.791,4.28559169]
[1771422151315,2.10083162,82.85,82.805,4.2874539]
[1771422151812,10.35180211,82.849,82.805,4.2874539]
[1771422152015,2.10083162,82.85,82.805,4.2874539]
[1771422152016,2.10083162,82.84,82.805,4.2874539]
[1771422152810,12.151287,82.84,82.773,12.05]
[1771422153009,2.10083162,82.8,82.769,4.34106941]
[1771422153215,2.10083162,82.82,82.771,4.34106941]
[1771422153813,2.10083162,82.81,82.784,4.50380239]
[1771422157919,2.10083162,82.81,82.782,10.8767]
[1771422158119,2.10083162,82.8,82.741,5.05544945]
[1771422158414,2.10083162,82.8,82.751,5.05544945]
[1771422158619,36.29,82.841,82.729,5.0991333]
[1771422158620,2.10083162,82.77,82.729,5.0991333]
[1771422159716,2.10083162,82.77,82.749,10.8811]
[1771422160018,2.10083162,82.76,82.729,5.0991333]
[1771422160220,2.10083162,82.75,82.729,5.0991333]
[1771422160413,2.10083162,82.75,82.725,10.8842]
[1771422160723,10.05045538,82.768,82.725,10.8842]
[1771422160923,2.10083162,82.76,82.725,10.8842]
[1771422163824,2.10083162,82.74,82.703,5.24554447]
[1771422164318,10.05045538,82.749,82.703,5.24554447]
[1771422164721,10.05045538,82.749,82.713,10.8857]
[1771422165017,2.10083162,82.74,82.713,10.8857]
[1771422166122,10.05045538,82.749,82.713,10.8857]
[1771422166729,6.26114056,82.76,82.721,10.8848]
[1771422167023,10.81964396,82.759,82.721,10.8848]
[1771422167224,10.81964396,82.759,82.712,10.8858]
[1771422168726,10.81964396,82.759,82.712,10.16650228]
[1771422169436,10.81964396,82.759,82.703,10.8871]
[1771422169825,10.81964396,82.749,82.699,10.16650228]
[1771422170225,10.81964396,82.749,82.7,10.8875]
[1771422171324,10.81964396,82.749,82.707,10.8865]
[1771422172826,10.81964396,82.749,82.707,10.16650228]
[1771422173126,10.81964396,82.749,82.714,10.8857]
[1771422173728,10.81964396,82.749,82.707,10.16650228]
[1771422174733,10.81964396,82.749,82.71,10.8862]
[1771422176334,10.81964396,82.739,82.692,10.8885]
[1771422177831,10.81964396,82.739,82.686,10.60389641]
[1771422178230,10.46214041,82.731,82.686,10.60389641]
[1771422179728,6.26114056,82.74,82.686,10.60389641]
[1771422180033,6.26114056,82.74,82.699,21.49149641]
[1771422180235,6.26114056,82.74,82.7,10.60389641]
[1771422180534,10.46214041,82.757,82.703,10.60389641]
[1771422180931,10.46214041,82.755,82.703,10.60389641]
[1771422181938,10.46214041,82.752,82.681,10.60389641]
[1771422182434,10.46214041,82.752,82.67,6.26114056]
[1771422182435,10.46214041,82.752,82.709,10.8863]
[1771422182832,10.8809,82.751,82.702,10.8873]
[1771422183041,10.46214041,82.75,82.702,10.8873]
[1771422183625,10.46214041,82.739,82.685,10.60389641]
[1771422184041,10.46214041,82.729,82.685,10.60389641]
[1771422184527,10.46214041,82.709,82.651,10.60389641]
[1771422184925,10.8865,82.708,82.651,10.60389641]
[1771422185132,10.46214041,82.707,82.651,10.60389641]
[1771422185327,10.46214041,82.699,82.621,10.60389641]
[1771422185839,10.46214041,82.698,82.643,10.60389641]
[1771422186039,2.10685315,82.68,82.643,10.60389641]
[1771422186332,2.10685315,82.68,82.63,13.00355315]
[1771422186541,2.10685315,82.67,82.631,10.60389641]
[1771422186929,10.46214041,82.672,82.631,10.60389641]
[1771422187132,2.10685315,82.66,82.631,10.60389641]
[1771422187437,2.10685315,82.67,82.631,10.60389641]
[1771422188741,2.10685315,82.68,82.641,10.60389641]
[1771422188932,2.10685315,82.69,82.641,10.60389641]
[1771422189335,2.10685315,82.69,82.64,2.10685315]
[1771422189336,2.10685315,82.69,82.646,21.49849641]
[1771422189539,2.10685315,82.7,82.651,10.60389641]
[1771422189733,2.10685315,82.69,82.651,10.60389641]
[1771422190034,2.10685315,82.69,82.602,323.54891681]
[1771422190035,2.10685315,82.68,82.641,10.60389641]
[1771422190229,10.46214041,82.7,82.641,10.60389641]
[1771422190230,2.10685315,82.69,82.641,10.60389641]
[1771422190434,12.56899356,82.69,82.641,10.60389641]
[1771422190832,2.10685315,82.68,82.641,10.60389641]
[1771422191032,2.10685315,82.67,82.621,10.60389641]
[1771422191235,2.10685315,82.68,82.631,10.60389641]
[1771422191441,2.10685315,82.68,82.634,10.60389641]
[1771422191834,2.10685315,82.67,82.634,10.60389641]
[1771422192439,2.10685315,82.67,82.638,10.60389641]
[1771422193837,2.10685315,82.68,82.638,10.60389641]
[1771422194741,2.10685315,82.68,82.647,10.8945]
[1771422195943,10.46214041,82.689,82.647,10.8945]
[1771422197242,10.46214041,82.689,82.61,6.27128821]
[1771422197243,10.46214041,82.689,82.656,10.8933]
[1771422198445,10.567033,82.679,82.62,10.64230425]
[1771422198950,10.567033,82.677,82.62,10.64230425]
[1771422199840,10.567033,82.673,82.62,10.64230425]
[1771422200235,6.27128821,82.68,82.62,10.64230425]
[1771422201445,16.83832121,82.68,82.629,10.64230425]
[1771422202048,10.567033,82.679,82.629,10.64230425]
[1771422202243,16.83832121,82.68,82.603,12.05]
[1771422202244,6.27128821,82.68,82.632,10.64230425]
[1771422202650,6.27128821,82.68,82.633,10.8964]
[1771422202842,10.567033,82.694,82.634,10.64230425]
[1771422203546,10.8885,82.693,82.64,10.64230425]
[1771422204344,47.41615733,82.732,82.64,10.64230425]
[1771422204345,10.567033,82.728,82.643,10.64230425]
[1771422204543,10.567033,82.719,82.643,10.64230425]
[1771422204941,10.567033,82.703,82.643,10.64230425]
[1771422205449,10.567033,82.7,82.643,10.64230425]
[1771422205651,10.567033,82.699,82.643,10.64230425]
[1771422206745,10.8884,82.694,82.643,10.64230425]
[1771422207052,10.567033,82.693,82.643,10.64230425]
[1771422209250,10.567033,82.679,82.642,12.05]
[1771422209453,6.27128821,82.66,82.611,10.64230425]
[1771422209748,10.567033,82.659,82.612,10.64230425]
[1771422210050,10.567033,82.659,82.612,21.54140425]
[1771422210957,10.567033,82.659,82.612,10.64230425]
[1771422212155,10.567033,82.659,82.61,10.64230425]
[1771422213657,6.27128821,82.67,82.611,10.64230425]
[1771422213856,10.567033,82.669,82.611,10.64230425]
[1771422214251,10.567033,82.667,82.611,10.64230425]
[1771422214459,10.567033,82.649,82.594,10.64230425]
[1771422214756,10.567033,82.649,82.595,10.64230425]
[1771422214954,6.27128821,82.65,82.595,10.64230425]
[1771422215152,10.567033,82.663,82.595,10.64230425]
[1771422215348,10.567033,82.663,82.613,10.64230425]
[1771422216062,2.10815097,82.66,82.613,10.64230425]
[1771422216748,2.10815097,82.66,82.615,10.64230425]
[1771422217152,2.10815097,82.66,82.619,10.64230425]
[1771422217561,2.10815097,82.67,82.621,10.64230425]
[1771422218160,2.10815097,82.66,82.621,10.64230425]
[1771422219061,2.10815097,82.66,82.621,21.54020425]
[1771422219266,2.10815097,82.66,82.621,10.64230425]
[1771422219559,2.10815097,82.67,82.621,10.898]
[1771422219762,2.10815097,82.66,82.622,10.64230425]
[1771422221257,2.10815097,82.66,82.63,10.8967]
[1771422221558,2.10815097,82.67,82.63,10.64230425]
[1771422221754,10.567033,82.693,82.63,12.75045522]
[1771422221962,2.10815097,82.68,82.63,12.75045522]
[1771422222156,10.567033,82.693,82.651,10.64230425]
[1771422222361,2.10815097,82.69,82.651,10.64230425]
[1771422222556,10.567033,82.706,82.66,2.10815097]
[1771422222557,2.10815097,82.7,82.66,2.10815097]
[1771422222859,2.10815097,82.71,82.67,10.64230425]
[1771422223059,2.10815097,82.71,82.67,12.75045522]
[1771422223356,2.10815097,82.72,82.67,12.75045522]
[1771422223562,2.10815097,82.72,82.684,10.8896]
[1771422223957,10.567033,82.724,82.684,10.8896]
[1771422224561,6.26499112,82.73,82.695,10.8881]
[1771422224961,11.78436269,82.729,82.695,10.8881]
[1771422225963,11.78436269,82.729,82.702,10.8872]
[1771422226351,11.78436269,82.729,82.694,10.8883]
[1771422226763,6.26499112,82.74,82.683,10.64230425]
[1771422227159,11.78436269,82.757,82.701,11.09376732]
[1771422227565,11.78436269,82.774,82.701,11.09376732]
[1771422227864,11.78436269,82.79,82.711,11.09376732]
[1771422228364,11.78436269,82.805,82.749,21.97476732]
[1771422228562,11.78436269,82.805,82.75,11.09376732]
[1771422228753,11.78436269,82.805,82.755,11.09376732]
[1771422229261,6.26499112,82.82,82.755,11.09376732]
[1771422229564,11.78436269,82.819,82.766,11.09376732]
[1771422230664,11.78436269,82.837,82.766,11.09376732]
[1771422230863,11.78436269,82.833,82.766,11.09376732]
[1771422231059,11.78436269,82.819,82.766,11.09376732]
[1771422231260,11.78436269,82.809,82.75,11.09376732]
[1771422232263,11.78436269,82.809,82.74,10.8822]
[1771422232464,11.78436269,82.809,82.743,10.8818]
[1771422232767,11.78436269,82.809,82.744,11.09376732]
[1771422233061,11.78436269,82.809,82.746,11.09376732]
[1771422235659,11.78436269,82.809,82.718,75.98]
[1771422235660,11.78436269,82.809,82.729,11.09376732]
[1771422235864,11.78436269,82.809,82.659,169.4453]
[1771422235865,11.78436269,82.809,82.731,11.09376732]
[1771422236859,11.78436269,82.809,82.747,11.09376732]
[1771422239464,11.19103807,82.807,82.74,10.8823]
[1771422239670,11.19103807,82.789,82.748,10.8812]
[1771422241771,11.19103807,82.789,82.746,11.80757101]
[1771422241973,11.19103807,82.789,82.739,10.8824]
[1771422242470,6.26499112,82.8,82.747,11.80757101]
[1771422243473,17.45602919,82.8,82.747,11.80757101]
[1771422243672,11.19103807,82.799,82.752,10.8806]
[1771422245575,11.19103807,82.799,82.7,28.02901967]
[1771422245576,11.19103807,82.797,82.744,10.8817]
[1771422245973,6.25411967,82.8,82.744,10.8817]
[1771422245974,11.19103807,82.795,82.744,10.8817]
[1771422246371,11.19103807,82.791,82.744,10.8817]
[1771422246768,75.98,82.796,82.733,10.8832]
[1771422246769,11.19103807,82.779,82.733,10.8832]
[1771422247269,6.25411967,82.77,82.716,11.80757101]
[1771422247467,11.19103807,82.769,82.716,11.80757101]
[1771422248672,11.19103807,82.769,82.718,10.8852]
[1771422249065,11.19103807,82.784,82.718,11.80757101]
[1771422249262,6.25411967,82.78,82.721,11.80757101]
[1771422249467,11.19103807,82.784,82.721,11.80757101]
[1771422250070,6.25411967,82.8,82.736,11.80757101]
[1771422250680,6.25411967,82.78,82.736,11.80757101]
[1771422251981,17.44515774,82.78,82.736,11.80757101]
[1771422252276,11.19103807,82.779,82.711,11.80757101]
[1771422252476,10.8774,82.778,82.712,10.886]
[1771422252777,11.19103807,82.777,82.713,11.80757101]
[1771422253171,11.19103807,82.777,82.722,11.80757101]
[1771422253776,6.25411967,82.78,82.722,11.80757101]
[1771422254276,6.25411967,82.78,82.729,11.80757101]
[1771422255284,11.06169777,82.779,82.729,11.80757101]
[1771422257280,11.06169777,82.779,82.73,10.8836]
[1771422257480,11.06169777,82.779,82.731,11.14033862]
[1771422257975,6.25411967,82.78,82.734,11.14033862]
[1771422258680,6.25411967,82.78,82.739,10.8823]
[1771422261874,11.06169777,82.779,82.721,11.14033862]
[1771422262485,17.31581744,82.76,82.721,11.14033862]
[1771422262680,11.06169777,82.759,82.691,11.14033862]
[1771422263277,11.06169777,82.759,82.698,12.09]
[1771422263485,11.06169777,82.759,82.703,11.14033862]
[1771422263786,11.06169777,82.759,82.717,10.8852]
[1771422263985,11.06169777,82.759,82.69,11.14033862]
[1771422264882,11.06169777,82.759,82.709,10.8863]
[1771422266378,11.06169777,82.759,82.704,11.14033862]
[1771422266988,36.29,82.785,82.703,12.09]
[1771422266989,11.06169777,82.774,82.705,11.14033862]
[1771422267784,11.06169777,82.774,82.718,23.23033862]
[1771422268284,11.06169777,82.774,82.719,10.885]
[1771422268483,11.06169777,82.759,82.709,12.09]
[1771422268888,11.06169777,82.759,82.706,12.09]
[1771422269488,6.25411967,82.76,82.712,11.14033862]
[1771422270181,11.06169777,82.772,82.717,11.14033862]
[1771422271387,10.34908271,82.771,82.717,11.14033862]
[1771422271690,75.98,82.777,82.718,10.8851]
[1771422271691,11.06169777,82.769,82.718,10.8851]
[1771422271891,11.06169777,82.769,82.718,22.02543862]
[1771422272790,11.06169777,82.769,82.725,10.8842]
[1771422272986,10.30867528,82.768,82.725,10.8842]
[1771422273290,10.30867528,82.767,82.725,10.8842]
[1771422273492,10.30867528,82.766,82.725,10.8842]
[1771422273696,10.30867528,82.765,82.725,10.8842]
[1771422273992,2.10295198,82.76,82.725,10.8842]
[1771422275393,2.10295198,82.76,82.731,10.8833]
[1771422276186,2.10295198,82.76,82.737,10.8826]
[1771422276791,11.06169777,82.769,82.737,10.8826]
[1771422276985,2.10295198,82.76,82.737,10.8826]
[1771422278088,2.10295198,82.76,82.742,10.8819]
[1771422278286,2.10295198,82.77,82.734,11.14033862]
[1771422278488,2.10295198,82.78,82.734,11.14033862]
[1771422278689,22.13041025,82.797,82.73,14.19295198]
[1771422278690,2.10295198,82.79,82.741,11.14033862]
[1771422278888,2.10295198,82.79,82.768,10.8785]
[1771422279292,2.10295198,82.8,82.753,11.14033862]
[1771422280396,2.10295198,82.8,82.774,10.8777]
[1771422280598,2.10295198,82.8,82.755,11.14033862]
[1771422281893,2.10295198,82.8,82.766,11.14033862]
[1771422282100,11.06169777,82.81,82.766,11.14033862]
[1771422282293,75.98,82.819,82.771,11.14033862]
[1771422282592,2.10295198,82.82,82.771,11.14033862]
[1771422282794,13.16464975,82.81,82.777,10.8773]
[1771422283694,11.06169777,82.81,82.771,11.14033862]
[1771422283895,13.16464975,82.81,82.771,11.14033862]
[1771422284995,2.10295198,82.81,82.771,11.14033862]
[1771422285191,2.10295198,82.81,82.78,10.8769]
[1771422285396,2.10295198,82.81,82.771,11.14033862]
[1771422286692,2.10295198,82.81,82.772,10.878]
[1771422287601,14.07924482,82.81,82.772,10.878]
[1771422288304,14.07924482,82.81,82.779,10.8771]
[1771422289702,14.07924482,82.81,82.785,10.8763]
[1771422289898,11.97629284,82.824,82.785,10.8763]
[1771422290104,2.10295198,82.82,82.785,10.8763]
[1771422290507,2.10295198,82.81,82.785,10.8763]
[1771422291007,2.10295198,82.82,82.785,10.8763]
[1771422291601,2.10295198,82.82,82.773,12.27852398]
[1771422291803,2.10295198,82.81,82.773,12.27852398]
[1771422292803,2.10295198,82.81,82.783,10.8766]
[1771422295800,11.97629284,82.82,82.783,10.8766]
[1771422296006,2.10295198,82.81,82.783,10.8766]
[1771422296405,2.10295198,82.82,82.793,10.8753]
[1771422297708,2.10295198,82.81,82.793,10.8753]
[1771422298209,2.10295198,82.81,82.771,12.07264834]
[1771422299808,2.10295198,82.81,82.782,10.8768]
[1771422300502,452.9962254,82.825,82.758,21.7599]
[1771422300503,441.32496996,82.825,82.792,12.07264834]
[1771422300708,21.724,82.895,82.792,12.07264834]
[1771422300709,2.10295198,82.83,82.792,12.07264834]
[1771422300907,11.67125544,82.851,82.792,12.07264834]
[1771422301102,2.10295198,82.85,82.792,12.07264834]
[1771422301300,2.10295198,82.85,82.798,12.07264834]
[1771422301504,2.10295198,82.85,82.801,12.07264834]
[1771422301904,2.10295198,82.85,82.8,2.10295198]
[1771422301905,2.10295198,82.85,82.804,12.07264834]
[1771422302305,78.10295198,82.86,82.811,12.07264834]
[1771422302706,11.06871248,82.901,82.811,12.07264834]
[1771422302707,13.77420742,82.85,82.811,12.07264834]
[1771422302903,2.10295198,82.84,82.811,12.07264834]
[1771422303108,13.77420742,82.85,82.811,12.07264834]
[1771422303305,11.67125544,82.884,82.821,12.07264834]
[1771422303511,2.10295198,82.88,82.831,12.07264834]
[1771422303807,11.67125544,82.884,82.831,12.07264834]
[1771422303808,2.10295198,82.87,82.831,12.07264834]
[1771422305908,2.09681482,82.88,82.831,12.07264834]
[1771422306215,2.09681482,82.86,82.817,12.07264834]
[1771422306914,2.09681482,82.85,82.806,10.8736]
[1771422307113,13.76807026,82.86,82.811,12.07264834]
[1771422307714,13.76807026,82.86,82.814,12.07264834]
[1771422309310,2.09681482,82.85,82.814,12.07264834]
[1771422311321,2.09681482,82.85,82.815,10.8724]
[1771422312015,2.09681482,82.86,82.816,12.07264834]
[1771422312214,2.09681482,82.86,82.826,12.07264834]
[1771422313322,2.09681482,82.86,82.81,2.09681482]
[1771422313323,13.76807026,82.86,82.81,2.09681482]
[1771422313619,2.09681482,82.83,82.794,12.07264834]
[1771422314812,2.09681482,82.83,82.795,10.875]
[1771422315515,11.67125544,82.839,82.785,10.8763]
[1771422315516,2.09681482,82.82,82.785,10.8763]
[1771422315818,11.67125544,82.839,82.786,12.41765659]
[1771422316020,2.09681482,82.82,82.786,12.41765659]
[1771422316212,11.67125544,82.839,82.796,10.8749]
[1771422316415,2.09681482,82.83,82.796,10.8749]
[1771422319524,2.09681482,82.82,82.796,10.8749]
[1771422320516,2.09681482,82.83,82.796,10.8749]
[1771422320715,11.67125544,82.839,82.797,12.41765659]
[1771422320921,2.09681482,82.84,82.805,12.41765659]
[1771422321427,2.09681482,82.86,82.817,12.41765659]
[1771422321725,2.09681482,82.85,82.817,12.41765659]
[1771422322023,2.09681482,82.84,82.801,12.41765659]
[1771422322229,2.09681482,82.83,82.781,12.41765659]
[1771422322423,2.09681482,82.82,82.781,12.41765659]
[1771422322624,2.09681482,82.83,82.781,12.41765659]
[1771422322821,11.93198287,82.829,82.781,12.41765659]
[1771422323025,2.09681482,82.81,82.781,12.41765659]
[1771422323326,2.09681482,82.82,82.781,12.41765659]
[1771422324028,2.09681482,82.83,82.781,12.41765659]
[1771422324729,2.09681482,82.83,82.791,12.41765659]
[1771422325524,2.09681482,82.83,82.794,10.8751]
[1771422325725,2.09681482,82.83,82.795,12.41765659]
[1771422326929,2.09681482,82.82,82.795,12.41765659]
[1771422327129,2.09681482,82.82,82.772,12.09]
[1771422327426,2.09681482,82.82,82.776,12.41765659]
[1771422328828,2.09681482,82.82,82.785,10.8763]
[1771422330228,2.09681482,82.81,82.777,10.8774]
[1771422330426,2.09681482,82.81,82.776,12.41765659]
[1771422330627,2.09681482,82.8,82.776,23.29515659]
[1771422330834,2.09681482,82.81,82.776,23.29515659]
[1771422331226,2.09681482,82.81,82.782,10.8767]
[1771422332032,11.93198287,82.836,82.792,10.8754]
[1771422332231,2.09681482,82.82,82.792,10.8754]
[1771422332829,2.09681482,82.82,82.783,12.41765659]
[1771422333034,2.09681482,82.83,82.802,10.874]
[1771422333538,11.93198287,82.854,82.814,10.8725]
[1771422333730,2.09681482,82.84,82.814,10.8725]
[1771422333934,2.09681482,82.83,82.814,10.8725]
[1771422334931,2.09681482,82.84,82.814,10.8725]
[1771422335234,2.09681482,82.84,82.821,10.8716]
[1771422335728,2.09681482,82.84,82.802,12.41765659]
[1771422336129,2.09681482,82.83,82.781,12.41765659]
[1771422336329,2.09681482,82.82,82.781,12.41765659]
[1771422337034,2.09681482,82.81,82.781,12.41765659]
[1771422337239,2.09681482,82.82,82.781,12.41765659]
[1771422337438,2.09681482,82.82,82.795,10.875]
[1771422337640,2.09681482,82.82,82.796,12.41765659]
[1771422338342,2.09681482,82.83,82.798,10.8746]
[1771422338538,2.09681482,82.82,82.779,12.41765659]
[1771422339231,2.09681482,82.81,82.779,12.41765659]
[1771422340138,2.09681482,82.82,82.779,12.41765659]
[1771422341645,2.09681482,82.82,82.78,12.41765659]
[1771422342840,2.09681482,82.82,82.786,12.41765659]
[1771422343943,2.09681482,82.83,82.786,12.41765659]
[1771422344339,2.09681482,82.83,82.78,2.09681482]
[1771422344340,11.93198287,82.845,82.804,12.41765659]
[1771422344540,2.09681482,82.84,82.77,12.09]
[1771422344739,2.09681482,82.84,82.791,12.41765659]
[1771422345046,2.09681482,82.84,82.801,10.8742]
[1771422345345,2.09681482,82.83,82.797,11.46313953]
[1771422346044,2.09681482,82.84,82.797,11.46313953]
[1771422347343,2.09681482,82.82,82.797,11.46313953]
[1771422347544,2.09681482,82.83,82.797,11.46313953]
[1771422347735,2.09681482,82.84,82.797,11.46313953]
[1771422347938,2.09681482,82.84,82.81,10.8731]
[1771422348944,2.09681482,82.84,82.808,11.46313953]
[1771422350344,2.09681482,82.84,82.817,10.8721]
[1771422351949,2.09681482,82.84,82.808,11.46313953]
[1771422353645,2.09681482,82.84,82.815,10.8724]
[1771422354045,2.09681482,82.83,82.792,11.46313953]
[1771422355752,12.11302344,82.83,82.792,11.46313953]
[1771422356044,2.09681482,82.82,82.792,11.46313953]
[1771422357043,2.09681482,82.83,82.792,11.46313953]
[1771422357344,2.09681482,82.84,82.799,12.27211065]
[1771422358050,2.09681482,82.84,82.801,12.27211065]
[1771422359746,2.09681482,82.84,82.804,12.27211065]
[1771422360247,11.60062844,82.87,82.81,2.09681482]
[1771422360454,10.29308585,82.869,82.821,12.27211065]
[1771422360649,10.29308585,82.868,82.821,12.27211065]
[1771422360846,10.29308585,82.867,82.821,12.27211065]
[1771422361048,2.09681482,82.87,82.821,12.27211065]
[1771422361648,2.09681482,82.87,82.826,12.27211065]
[1771422361847,2.09681482,82.86,82.826,12.27211065]
[1771422362553,2.09681482,82.87,82.827,10.8708]
[1771422362856,2.09681482,82.87,82.828,12.27211065]
[1771422363055,10.28519076,82.869,82.828,12.27211065]
[1771422363253,10.28519076,82.868,82.839,12.27211065]
[1771422363455,22.74815673,82.892,82.84,2.09681482]
[1771422363660,2.09681482,82.89,82.851,12.27211065]
[1771422363849,2.09681482,82.9,82.851,12.27211065]
[1771422364049,10.28640495,82.899,82.851,12.27211065]
[1771422364349,2.09681482,82.88,82.851,12.27211065]
[1771422364656,2.09681482,82.87,82.831,12.27211065]
[1771422364858,2.09681482,82.86,82.83,10.8703]
[1771422365055,2.09681482,82.85,82.818,12.27211065]
[1771422365859,2.09681482,82.84,82.802,12.27211065]
[1771422366152,2.09681482,82.83,82.789,12.27211065]
[1771422366357,2.09681482,82.84,82.804,12.27211065]
[1771422367554,2.09681482,82.84,82.805,12.27211065]
[1771422367861,2.09862149,82.84,82.805,12.27211065]
[1771422369864,11.60062844,82.852,82.809,12.27211065]
[1771422370062,2.09862149,82.85,82.809,12.27211065]
[1771422370458,2.09862149,82.85,82.8,2.09862149]
[1771422370459,2.09862149,82.85,82.811,12.27211065]
[1771422370656,2.09862149,82.85,82.82,10.8717]